bitfinex-derivatives/quotes_SOLF0:USTF0_20250124
["timestamp","ask_amount","ask_price","bid_price","bid_amount"]
[1737753991606,0.02448258,257.63,257.57,9.37683819]
[1737753992601,0.02448258,257.63,257.57,13.25863819]
[1737753994107,0.02448258,257.63,257.57,9.37683819]
[1737753994704,0.02448258,257.63,257.57,13.25863819]
[1737753995504,0.02448258,257.63,257.57,9.37683819]
[1737753995711,0.02448258,257.63,257.61,9.37683819]
[1737753995909,1.2494,257.74,257.65,9.37683819]
[1737753996303,3.8796,257.72,257.65,9.37683819]
[1737753996999,0.02750829,257.71,257.66,0.02683974]
[1737753998706,0.02750829,257.71,257.69,13.25673819]
[1737753999112,0.02750829,257.71,257.69,9.37683819]
[1737754002309,172.60823233,257.91,257.69,9.37683819]
[1737754002513,1.2425,257.9,257.74,9.37683819]
[1737754002714,2.8872,257.9,257.74,9.37683819]
[1737754003515,0.02574823,257.85,257.79,0.0259129]
[1737754004122,3.90344823,257.85,257.79,0.0259129]
[1737754005621,0.02574823,257.85,257.79,0.0259129]
[1737754007214,0.02574823,257.85,257.82,9.37683819]
[1737754007918,0.02574823,257.85,257.84,3.8777]
[1737754016220,0.02574823,257.85,257.82,9.37683819]
[1737754016427,0.02574823,257.85,257.79,0.0259129]
[1737754016724,3.90344823,257.85,257.79,0.0259129]
[1737754017319,3.878,257.83,257.79,0.0259129]
[1737754017518,0.02574823,257.85,257.79,0.0259129]
[1737754019225,3.8783,257.8,257.79,0.0259129]
[1737754019428,0.02574823,257.85,257.79,0.0259129]
[1737754020421,3.8781,257.82,257.79,0.0259129]
[1737754020623,0.02574823,257.85,257.79,0.0259129]
[1737754021226,3.8783,257.81,257.79,0.0259129]
[1737754022828,3.8783,257.8,257.79,0.0259129]
[1737754023432,0.02574823,257.85,257.79,0.0259129]
[1737754024333,3.878,257.83,257.79,0.0259129]
[1737754024729,0.02574823,257.85,257.79,0.0259129]
[1737754026628,3.90334823,257.85,257.79,0.0259129]
[1737754026932,0.02574823,257.85,257.79,0.0259129]
[1737754028633,3.90334823,257.85,257.79,0.0259129]
[1737754029034,0.02574823,257.85,257.79,0.0259129]
[1737754031336,3.90334823,257.85,257.79,0.0259129]
[1737754033531,0.02574823,257.85,257.79,0.0259129]
[1737754038540,0.02574823,257.85,257.8,3.8783]
[1737754040045,0.02574823,257.85,257.79,0.0259129]
[1737754041342,3.878,257.83,257.79,0.0259129]
[1737754041734,0.02574823,257.85,257.79,0.0259129]
[1737754045449,3.8783,257.81,257.79,0.0259129]
[1737754045851,0.02574823,257.85,257.79,0.0259129]
[1737754046054,3.8783,257.81,257.79,0.0259129]
[1737754046254,0.02574823,257.85,257.79,0.0259129]
[1737754047155,3.8778,257.84,257.79,0.0259129]
[1737754047451,0.02574823,257.85,257.79,0.0259129]
[1737754047853,3.878,257.83,257.79,0.0259129]
[1737754048054,0.02574823,257.85,257.79,0.0259129]
[1737754048456,3.8783,257.8,257.79,0.0259129]
[1737754049457,3.8787,257.78,257.74,9.37683819]
[1737754049661,3.8787,257.78,257.71,3.8796]
[1737754050360,3.879,257.76,257.7,9.37683819]
[1737754050550,3.879,257.76,257.72,0.02513996]
[1737754050752,0.02975137,257.77,257.72,0.02513996]
[1737754051659,3.8793,257.74,257.72,0.02513996]
[1737754051854,0.02975137,257.77,257.72,0.02513996]
[1737754052358,3.8791,257.75,257.72,0.02513996]
[1737754052658,0.02975137,257.77,257.72,0.02513996]
[1737754054059,3.8792,257.75,257.72,0.02513996]
[1737754055163,3.8793,257.74,257.72,0.02513996]
[1737754056763,3.8794,257.73,257.72,0.02513996]
[1737754057263,4.3964,257.76,257.62,9.37683819]
[1737754058062,3.8803,257.68,257.62,9.37683819]
[1737754058265,4.3964,257.76,257.62,9.37683819]
[1737754058465,0.02534718,257.68,257.62,9.37683819]
[1737754059064,3.90554718,257.68,257.62,9.37683819]
[1737754059265,0.02534718,257.68,257.62,9.37683819]
[1737754059762,0.02534718,257.68,257.49,0.8288]
[1737754059763,3.8805,257.66,257.58,9.37683819]
[1737754060163,3.8806,257.65,257.58,9.37683819]
[1737754060757,0.02534718,257.68,257.54,9.37683819]
[1737754061264,9.37683819,257.71,257.5,9.37683819]
[1737754061265,0.02931046,257.64,257.5,9.37683819]
[1737754062265,3.882,257.56,257.5,9.37683819]
[1737754062664,4.1434,257.66,257.5,9.37683819]
[1737754062864,0.02468563,257.56,257.5,9.37683819]
[1737754063069,3.90668563,257.56,257.5,9.37683819]
[1737754065363,3.8821,257.55,257.5,9.37683819]
[1737754066462,3.8825,257.53,257.46,9.37683819]
[1737754066666,0.02468563,257.56,257.46,9.37683819]
[1737754067162,0.02468563,257.56,257.42,3.8839]
[1737754067163,3.8829,257.5,257.42,9.37683819]
[1737754067565,0.02630922,257.49,257.42,9.37683819]
[1737754068069,3.90930922,257.49,257.42,9.37683819]
[1737754068268,0.02630922,257.49,257.42,9.37683819]
[1737754071967,0.02630922,257.49,257.38,9.37683819]
[1737754073267,3.8841,257.43,257.38,9.37683819]
[1737754073666,3.91260381,257.43,257.38,9.37683819]
[1737754074174,3.8842,257.41,257.34,9.37683819]
[1737754074673,0.0276803,257.4,257.34,9.37683819]
[1737754077074,0.0276803,257.4,257.35,3.8851]
[1737754080178,0.0276803,257.4,257.34,9.37683819]
[1737754080673,3.8847,257.38,257.3,9.37683819]
[1737754081074,0.02687802,257.37,257.3,9.37683819]
[1737754081273,3.91177802,257.37,257.3,9.37683819]
[1737754081469,0.02687802,257.37,257.3,9.37683819]
[1737754081975,0.02687802,257.37,257.3,13.26263819]
[1737754082472,0.02687802,257.37,257.3,9.37683819]
[1737754082976,3.8852,257.35,257.3,9.37683819]
[1737754083676,0.02687802,257.37,257.3,9.37683819]
[1737754083868,3.91187802,257.37,257.3,9.37683819]
[1737754084068,0.02687802,257.37,257.3,9.37683819]
[1737754084270,0.02687802,257.37,257.34,9.37683819]
[1737754085578,0.02687802,257.37,257.3,9.37683819]
[1737754086179,3.91177802,257.37,257.3,9.37683819]
[1737754086874,0.02687802,257.37,257.3,9.37683819]
[1737754087378,0.02687802,257.37,257.34,9.37683819]
[1737754087579,0.02687802,257.37,257.36,3.885]
[1737754088479,4.3764,257.5,257.34,9.37683819]
[1737754088679,4.3764,257.5,257.38,9.37683819]
[1737754089181,24.21481791,257.59,257.44,3.8837]
[1737754089679,0.02651825,257.54,257.49,0.02461263]
[1737754090080,3.8824,257.53,257.49,0.02461263]
[1737754090975,0.02651825,257.54,257.49,0.02461263]
[1737754095288,3.90881825,257.54,257.49,0.02461263]
[1737754095783,0.02651825,257.54,257.51,9.37683819]
[1737754095982,1.2295,257.66,257.51,9.37683819]
[1737754096180,1.2295,257.66,257.55,9.37683819]
[1737754096687,3.8811,257.62,257.55,9.37683819]
[1737754097082,0.02895928,257.61,257.56,0.02479924]
[1737754097586,3.91015928,257.61,257.56,0.02479924]
[1737754098991,0.02895928,257.61,257.6,3.8814]
[1737754099985,3.8797,257.72,257.59,9.37683819]
[1737754100185,3.8797,257.72,257.65,9.37683819]
[1737754100790,3.8797,257.71,257.65,9.37683819]
[1737754101186,3.90935395,257.71,257.65,9.40583449]
[1737754101888,3.8799,257.7,257.65,9.40583449]
[1737754102089,0.02965395,257.71,257.65,0.0289963]
[1737754103085,3.8802,257.68,257.65,0.0289963]
[1737754105087,3.8801,257.68,257.61,9.37683819]
[1737754105385,11.66965395,257.71,257.52,9.37683819]
[1737754105586,1.7284,257.67,257.52,9.37683819]
[1737754105790,1.3278,257.66,257.52,9.37683819]
[1737754105992,3.8815,257.6,257.52,9.37683819]
[1737754106491,0.02740855,257.59,257.53,0.02861737]
[1737754107792,3.90890855,257.59,257.53,0.02861737]
[1737754107992,0.02740855,257.59,257.53,0.02861737]
[1737754108492,0.02740855,257.59,257.53,3.91101737]
[1737754108691,0.02740855,257.59,257.53,0.02861737]
[1737754109889,3.90890855,257.59,257.53,0.02861737]
[1737754110496,0.02740855,257.59,257.53,0.02861737]
[1737754111591,3.8823,257.54,257.53,0.02861737]
[1737754113697,0.02740855,257.59,257.44,9.37683819]
[1737754113698,3.8826,257.52,257.46,3.8835]
[1737754114292,3.8826,257.52,257.44,13.26043819]
[1737754114696,3.8829,257.5,257.44,9.37683819]
[1737754114893,0.02591997,257.51,257.45,0.02861381]
[1737754115097,4.357,257.55,257.4,9.37683819]
[1737754115294,3.8836,257.45,257.4,9.37683819]
[1737754115797,0.02691158,257.45,257.4,0.02548095]
[1737754115997,3.8838,257.44,257.4,0.02548095]
[1737754117997,0.02691158,257.45,257.4,0.02548095]
[1737754118198,3.8839,257.43,257.4,0.02548095]
[1737754118693,0.02691158,257.45,257.4,9.40231914]
[1737754118899,0.02691158,257.45,257.44,9.37683819]
[1737754123195,4.357,257.55,257.44,9.37683819]
[1737754123399,172.60823233,257.62,257.44,9.37683819]
[1737754123599,4.2934,257.61,257.44,9.37683819]
[1737754123804,3.8821,257.56,257.48,3.8832]
[1737754124405,0.0253817,257.55,257.49,0.0264079]
[1737754124603,3.8825,257.53,257.49,0.0264079]
[1737754124804,0.0253817,257.55,257.49,0.0264079]
[1737754126106,3.8826,257.52,257.49,0.0264079]
[1737754127601,3.8828,257.51,257.49,0.0264079]
[1737754128805,3.9075817,257.55,257.49,0.0264079]
[1737754129604,0.0253817,257.55,257.51,3.8826]
[1737754129801,0.0253817,257.55,257.52,9.37683819]
[1737754132308,0.0253817,257.55,257.53,3.8824]
[1737754133613,0.0253817,257.55,257.52,13.25933819]
[1737754136211,0.0253817,257.55,257.52,9.37683819]
[1737754136816,0.0253817,257.55,257.5,3.8828]
[1737754137216,0.0253817,257.55,257.49,0.0264079]
[1737754138118,0.0253817,257.55,257.51,3.8827]
[1737754138419,0.0253817,257.55,257.49,0.0264079]
[1737754139411,0.0253817,257.55,257.49,3.9094079]
[1737754140613,0.0253817,257.55,257.49,0.0264079]
[1737754141117,0.0253817,257.55,257.52,9.37683819]
[1737754141319,0.0253817,257.55,257.52,13.25923819]
[1737754142113,0.0253817,257.55,257.52,9.37683819]
[1737754143423,3.8808,257.64,257.56,3.8819]
[1737754143624,3.8808,257.64,257.57,9.37683819]
[1737754143819,4.2376,257.68,257.57,9.37683819]
[1737754144022,4.2376,257.68,257.6,3.8813]
[1737754144522,0.02528885,257.67,257.61,0.02594548]
[1737754145222,0.02528885,257.67,257.61,9.40278367]
[1737754145520,0.02528885,257.67,257.63,3.8809]
[1737754146122,0.02528885,257.67,257.61,13.28388367]
[1737754147623,0.02528885,257.67,257.62,3.881]
[1737754148825,0.02528885,257.67,257.61,9.40278367]
[1737754149023,0.02528885,257.67,257.65,9.37683819]
[1737754149422,0.02528885,257.67,257.61,9.40278367]
[1737754150019,3.90558885,257.67,257.61,9.40278367]
[1737754150219,0.02528885,257.67,257.61,0.02594548]
[1737754150622,3.8808,257.64,257.61,0.02594548]
[1737754151426,0.02528885,257.67,257.61,0.02594548]
[1737754151727,3.8809,257.63,257.61,0.02594548]
[1737754157632,3.8806,257.65,257.61,0.02594548]
[1737754157831,2.8686,257.66,257.61,0.02594548]
[1737754159134,3.8807,257.64,257.61,0.02594548]
[1737754159635,2.8686,257.66,257.61,0.02594548]
[1737754159933,6.01729358,257.63,257.52,6.01729358]
[1737754160129,3.8817,257.58,257.52,6.01729358]
[1737754160333,6.01729358,257.6,257.52,6.01729358]
[1737754161034,3.882,257.56,257.53,0.0263288]
[1737754162339,0.02629108,257.59,257.53,0.0263288]
[1737754163031,3.8817,257.58,257.53,0.0263288]
[1737754163236,0.02629108,257.59,257.53,0.0263288]
[1737754163737,0.02629108,257.59,257.53,3.9086288]
[1737754163937,0.02629108,257.59,257.53,0.0263288]
[1737754164134,3.8818,257.57,257.53,0.0263288]
[1737754164337,0.02629108,257.59,257.53,0.0263288]
[1737754164841,3.8823,257.54,257.53,0.0263288]
[1737754167137,1.2845,257.58,257.44,9.40624931]
[1737754167435,9.40624931,257.52,257.36,142.58662104]
[1737754167837,3.8837,257.45,257.38,3.8846]
[1737754168037,3.8837,257.45,257.36,142.58662104]
[1737754168339,0.02956208,257.43,257.38,0.0256546]
[1737754177453,3.8843,257.41,257.38,0.0256546]
[1737754180554,3.8844,257.4,257.38,0.0256546]
[1737754187361,3.8842,257.42,257.38,0.0256546]
[1737754188060,3.8843,257.41,257.38,0.0256546]
[1737754189863,0.02956208,257.43,257.4,6.02775385]
[1737754190155,2.9859,257.53,257.42,6.02775385]
[1737754190358,3.8826,257.52,257.46,6.02775385]
[1737754191365,3.9103948,257.52,257.46,6.05627836]
[1737754192959,3.9103948,257.52,257.5,3.8828]
[1737754192960,0.0277948,257.52,257.5,3.8828]
[1737754193564,0.0277948,257.52,257.49,6.02775385]
[1737754193765,0.0277948,257.52,257.46,6.05627836]
[1737754195472,3.883,257.5,257.46,6.05627836]
[1737754195674,6.02775385,257.51,257.46,0.02852451]
[1737754195873,6.02775385,257.48,257.46,0.02852451]
[1737754196175,6.02775385,257.48,257.4,6.02775385]
[1737754197170,3.8837,257.45,257.41,0.02971162]
[1737754200379,0.02928352,257.47,257.43,6.02775385]
[1737754200676,0.02928352,257.47,257.46,6.02775385]
[1737754200981,0.02928352,257.47,257.43,6.02775385]
[1737754201178,0.02928352,257.47,257.41,0.02971162]
[1737754202681,3.8838,257.44,257.41,0.02971162]
[1737754203178,0.02928352,257.47,257.41,3.91391162]
[1737754203382,0.02928352,257.47,257.43,6.02775385]
[1737754205583,3.91258352,257.47,257.43,6.02775385]
[1737754206182,0.02928352,257.47,257.43,6.02775385]
[1737754206386,0.02928352,257.47,257.46,6.02775385]
[1737754209689,0.02928352,257.47,257.43,9.91165385]
[1737754210088,0.02928352,257.47,257.41,0.02971162]
[1737754210685,6.02775385,257.45,257.34,6.02775385]
[1737754210893,6.02775385,257.42,257.34,6.02775385]
[1737754211096,6.02775385,257.42,257.32,133.18037173]
[1737754211793,1.7142,257.44,257.37,6.02775385]
[1737754211996,0.02920839,257.4,257.37,6.02775385]
[1737754213691,0.02920839,257.4,257.31,6.02775385]
[1737754214293,3.8849,257.37,257.31,6.02775385]
[1737754214493,0.02920839,257.4,257.31,6.02775385]
[1737754214889,3.8851,257.35,257.28,6.02775385]
[1737754215094,6.02775385,257.38,257.28,6.02775385]
[1737754215295,0.02978096,257.34,257.28,6.02775385]
[1737754215689,3.8856,257.32,257.25,8.27048711]
[1737754215997,0.02978096,257.34,257.25,6.02775385]
[1737754216395,6.02775385,257.32,257.25,6.02775385]
[1737754217397,9.91335385,257.32,257.25,6.02775385]
[1737754217801,0.02978096,257.34,257.19,12.29418502]
[1737754218094,1.3074,257.43,257.27,9.42578502]
[1737754218299,0.0295143,257.29,257.27,9.42578502]
[1737754218599,0.02963238,257.31,257.3,3.8858]
[1737754218795,3.8843,257.41,257.27,9.42578502]
[1737754218996,0.0251278,257.33,257.27,9.42578502]
[1737754221296,0.0251278,257.33,257.31,3.8857]
[1737754223800,0.0251278,257.33,257.31,9.42578502]
[1737754224096,2.68431394,257.48,257.31,9.42578502]
[1737754224292,2.68431394,257.48,257.37,9.42578502]
[1737754225099,0.02728963,257.45,257.4,0.02697681]
[1737754225500,0.02728963,257.45,257.41,9.42578502]
[1737754225705,0.02728963,257.45,257.44,3.8838]
[1737754227404,3.8821,257.55,257.44,3.8838]
[1737754228599,0.02972503,257.52,257.47,0.0289017]
[1737754230706,9.42578502,257.48,257.33,9.42578502]
[1737754230905,9.42578502,257.48,257.31,133.18037173]
[1737754231112,2.9895,257.47,257.31,133.18037173]
[1737754231611,3.8836,257.46,257.35,3.8851]
[1737754231807,2.9895,257.52,257.33,9.42578502]
[1737754232013,0.02579278,257.43,257.38,0.02536474]
[1737754232216,3.8844,257.41,257.38,0.02536474]
[1737754232404,0.02579278,257.43,257.38,0.02536474]
[1737754232810,3.8844,257.4,257.38,0.02536474]
[1737754233010,0.02579278,257.43,257.25,13.79738502]
[1737754233307,3.8847,257.38,257.29,3.886]
[1737754233810,3.8853,257.34,257.22,133.18037173]
[1737754234008,9.42578502,257.32,257.22,133.18037173]
[1737754234208,0.02476665,257.31,257.22,133.18037173]
[1737754234410,3.8862,257.28,257.22,133.18037173]
[1737754234617,0.02476665,257.31,257.22,133.18037173]
[1737754234809,0.02476665,257.31,257.14,160.64468759]
[1737754235101,3.8866,257.26,257.15,3.8881]
[1737754235303,184.24823233,257.31,257.14,160.64468759]
[1737754235507,9.42578502,257.24,257.14,160.64468759]
[1737754235803,0.02597462,257.25,257.14,160.64468759]
[1737754235804,9.42578502,257.2,257.14,160.64468759]
[1737754236209,3.888,257.16,257.14,160.64468759]
[1737754236712,13.31378502,257.16,257.14,141.6708074]
[1737754237314,9.42578502,257.16,257.0,9.42578502]
[1737754237514,3.8884,257.14,257.05,3.8896]
[1737754238115,0.02624658,257.12,257.05,3.8896]
[1737754238808,0.02624658,257.12,257.0,9.42578502]
[1737754239013,3.8888,257.11,257.01,3.8902]
[1737754239218,9.4520316,257.12,257.01,3.8902]
[1737754239618,3.889,257.1,256.99,137.07087173]
[1737754240219,0.02624658,257.12,256.98,2.6107]
[1737754240409,0.02624658,257.12,257.0,9.42578502]
[1737754240614,0.02629217,257.08,257.0,9.42578502]
[1737754240917,9.42578502,257.21,257.04,9.42578502]
[1737754241111,2.886,257.23,257.04,9.42578502]
[1737754241716,3.8875,257.2,257.08,3.8891]
[1737754242119,0.02816887,257.17,257.11,0.02629217]
[1737754244913,0.02816887,257.17,257.13,3.8884]
[1737754245517,0.02816887,257.17,257.11,0.02629217]
[1737754246819,9.42578502,257.13,256.93,9.42578502]
[1737754247015,9.42578502,257.13,256.93,13.74598502]
[1737754247320,1.2962,257.12,256.93,13.74598502]
[1737754247923,0.02921229,257.05,256.96,3.891]
[1737754248614,0.02921229,257.05,256.93,13.74598502]
[1737754248918,3.91891229,257.05,256.94,3.8913]
[1737754249318,0.02921229,257.05,256.93,13.74598502]
[1737754249523,0.02921229,257.05,256.93,4.3202]
[1737754251122,3.8898,257.04,256.93,8.2116]
[1737754252223,3.8898,257.04,256.93,4.3202]
[1737754252425,3.8898,257.04,256.94,3.8913]
[1737754253018,3.8898,257.04,256.93,4.3202]
[1737754253223,0.02921229,257.05,256.98,3.8907]
[1737754254827,0.02921229,257.05,256.96,3.8909]
[1737754256027,0.02921229,257.05,256.94,3.8912]
[1737754256730,3.89,257.03,256.94,3.8912]
[1737754258131,3.89,257.03,256.95,3.8912]
[1737754259233,3.91891229,257.05,256.97,3.8908]
[1737754259734,0.02921229,257.05,256.93,4.3202]
[1737754259937,3.8899,257.04,256.96,3.891]
[1737754264237,0.02921229,257.05,256.97,3.8908]
[1737754264730,3.91891229,257.05,256.97,3.8908]
[1737754266334,0.02921229,257.05,256.93,1.2532]
[1737754266641,15.11411159,257.03,256.85,2.7969]
[1737754266938,3.8906,256.99,256.91,3.8917]
[1737754267139,0.02807892,256.97,256.91,3.8917]
[1737754267531,0.02807892,256.97,256.89,3.8919]
[1737754267730,0.02807892,256.97,256.85,2.7969]
[1737754268636,0.02807892,256.97,256.8,1.2372]
[1737754268933,3.8918,256.91,256.8,1.2372]
[1737754269134,0.02810758,256.91,256.8,1.2372]
[1737754269437,0.02810758,256.91,256.9,3.8919]
[1737754269639,1.2479,257.07,256.89,15.11411159]
[1737754269841,1.2479,257.07,256.9,2.8412]
[1737754270036,175.37163233,257.13,256.93,15.11411159]
[1737754270539,1.2479,257.16,256.98,15.11411159]
[1737754270835,1.2479,257.16,257.0,0.02514301]
[1737754271035,0.02856632,257.1,257.03,15.11411159]
[1737754271233,0.02856632,257.1,257.08,3.8891]
[1737754271837,0.02856632,257.1,257.06,3.8894]
[1737754272341,0.02856632,257.1,257.04,2.86930758]
[1737754272734,0.02856632,257.1,257.04,0.02810758]
[1737754273241,15.14267791,257.1,257.04,0.02810758]
[1737754274241,3.8894,257.07,257.04,0.02810758]
[1737754275331,15.14267791,257.1,257.04,3.91790758]
[1737754275332,0.02856632,257.1,257.04,3.91790758]
[1737754275535,0.02856632,257.1,257.04,0.02810758]
[1737754275744,0.02856632,257.1,257.06,9.43518605]
[1737754276138,5.4138,257.22,257.08,3.8892]
[1737754276343,5.4138,257.22,257.06,9.43518605]
[1737754276543,172.60823233,257.24,257.1,9.43518605]
[1737754276746,172.60823233,257.24,257.14,3.8882]
[1737754277341,0.0268934,257.22,257.16,0.0269875]
[1737754278546,0.0268934,257.22,257.16,3.9148875]
[1737754278748,0.0268934,257.22,257.16,0.0269875]
[1737754281038,3.8875,257.2,257.16,0.0269875]
[1737754281446,0.0268934,257.22,257.16,0.0269875]
[1737754281649,3.8877,257.18,257.16,0.0269875]
[1737754282540,3.8875,257.2,257.16,0.0269875]
[1737754282938,0.0268934,257.22,257.16,0.0269875]
[1737754283644,3.8877,257.18,257.16,0.0269875]
[1737754285349,3.889,257.1,257.0,4.1091]
[1737754286051,3.889,257.1,257.0,7.9994]
[1737754286444,0.02974523,257.08,257.02,0.02767479]
[1737754286848,0.02974523,257.08,257.03,3.8899]
[1737754287149,0.02974523,257.08,257.02,0.02767479]
[1737754287452,0.02974523,257.08,257.02,3.91767479]
[1737754287750,0.02974523,257.08,257.02,0.02767479]
[1737754288050,0.02974523,257.08,257.03,3.8899]
[1737754288354,0.02974523,257.08,257.02,0.02767479]
[1737754289842,15.0906107,257.07,257.02,0.02767479]
[1737754290247,16.3352107,257.07,257.02,0.02767479]
[1737754290448,3.89,257.03,257.02,0.02767479]
[1737754292653,1.4752,257.06,257.02,0.02767479]
[1737754292853,3.8898,257.04,257.02,0.02767479]
[1737754294953,3.8897,257.05,257.02,0.02767479]
[1737754295552,3.8895,257.07,257.02,0.02767479]
[1737754295751,0.02974523,257.08,257.02,0.02767479]
[1737754297958,3.89,257.03,257.02,0.02767479]
[1737754300557,0.02974523,257.08,257.02,0.02767479]
[1737754301157,0.02974523,257.08,257.04,3.8897]
[1737754301560,0.02974523,257.08,257.02,0.02767479]
[1737754301855,0.02974523,257.08,257.05,3.8896]
[1737754302453,0.02974523,257.08,257.02,0.02767479]
[1737754302650,0.02974523,257.08,257.05,3.8896]
[1737754302849,0.02974523,257.08,257.02,0.02767479]
[1737754303856,0.02974523,257.08,257.02,3.91777479]
[1737754304558,0.02974523,257.08,257.02,0.02767479]
[1737754304761,2.9014,257.21,257.03,1.2399]
[1737754304960,2.9014,257.21,257.04,1.5336]
[1737754304961,1.5815,257.21,257.04,1.5336]
[1737754305161,3.8878,257.18,257.04,1.5336]
[1737754305657,1.5815,257.21,257.06,3.8894]
[1737754306057,0.02960682,257.16,257.11,0.0259324]
[1737754307965,3.91760682,257.16,257.11,0.0259324]
[1737754309066,0.02960682,257.16,257.11,0.0259324]
[1737754309665,3.8886,257.12,257.11,0.0259324]
[1737754310166,1.3518,257.15,256.92,1.2822]
[1737754310466,3.8892,257.08,256.92,1.2822]
[1737754311068,3.8892,257.08,257.0,3.8903]
[1737754311259,0.02551759,257.03,257.0,3.8903]
[1737754311464,0.02551759,257.03,256.97,0.02631193]
[1737754311969,0.02551759,257.03,257.02,3.8901]
[1737754315875,15.0906107,257.22,257.06,3.8894]
[1737754316166,3.8883,257.15,257.06,3.8894]
[1737754316564,15.0906107,257.22,256.99,15.0906107]
[1737754316761,15.0906107,257.22,257.08,3.8892]
[1737754317070,0.02791667,257.13,257.08,3.8892]
[1737754320266,0.02791667,257.13,257.1,3.8889]
[1737754320573,0.02791667,257.13,257.07,0.02808549]
[1737754320774,0.02791667,257.13,257.12,3.8886]
[1737754321774,0.02791667,257.13,257.08,1.2858]
[1737754321775,1.5843,257.28,257.09,15.0906107]
[1737754321973,3.8865,257.26,257.16,3.888]
[1737754322269,1.5843,257.28,257.09,15.0906107]
[1737754322876,0.02851468,257.21,257.16,0.02991456]
[1737754323870,0.02851468,257.21,257.2,3.8874]
[1737754324075,0.02851468,257.21,257.17,1.5209]
[1737754325475,0.02851468,257.21,257.17,2.7723]
[1737754326276,3.8861,257.29,257.17,2.7723]
[1737754326474,19.1832107,257.37,257.17,2.7723]
[1737754326673,3.8857,257.31,257.22,3.887]
[1737754326971,19.1832107,257.37,257.17,2.7723]
[1737754327370,19.1832107,257.37,257.24,0.02658425]
[1737754327371,0.02829242,257.3,257.24,0.02658425]
[1737754327575,0.02829242,257.3,257.24,3.91328425]
[1737754327973,0.02829242,257.3,257.24,0.02658425]
[1737754328679,3.8861,257.29,257.24,0.02658425]
[1737754328884,0.02829242,257.3,257.24,0.02658425]
[1737754329388,3.91429242,257.3,257.24,0.02658425]
[1737754329991,0.02829242,257.3,257.24,0.02658425]
[1737754330489,3.8866,257.25,257.24,0.02658425]
[1737754330991,3.8878,257.18,257.08,3.8891]
[1737754331189,15.0906107,257.27,257.04,15.0906107]
[1737754331486,3.8878,257.18,257.09,3.889]
[1737754331694,9.43676056,257.22,257.05,1.2358]
[1737754331887,3.8882,257.15,257.07,3.8892]
[1737754332086,3.8882,257.15,257.11,0.02699086]
[1737754332490,0.028556,257.16,257.11,0.02699086]
[1737754332687,3.8884,257.14,257.11,0.02699086]
[1737754333492,0.028556,257.16,257.11,0.02699086]
[1737754334390,3.8883,257.14,257.11,0.02699086]
[1737754335286,3.916556,257.16,257.11,0.02699086]
[1737754337999,3.8884,257.14,257.11,0.02699086]
[1737754338694,0.028556,257.16,257.11,0.02699086]
[1737754342598,3.8882,257.15,257.11,0.02699086]
[1737754342797,0.028556,257.16,257.11,0.02699086]
[1737754343496,3.8884,257.14,257.11,0.02699086]
[1737754344796,3.8881,257.15,257.11,0.02699086]
[1737754345199,0.028556,257.16,257.11,0.02699086]
[1737754345800,3.916556,257.16,257.11,0.02699086]
[1737754346298,3.8884,257.14,257.11,0.02699086]
[1737754346501,0.028556,257.16,257.11,0.02699086]
[1737754346896,3.8886,257.12,257.11,0.02699086]
[1737754352305,0.028556,257.16,257.11,0.02699086]
[1737754352506,3.8885,257.13,257.11,0.02699086]
[1737754352806,0.028556,257.16,257.11,0.02699086]
[1737754353009,3.8886,257.12,257.11,0.02699086]
[1737754354711,3.8883,257.14,257.11,0.02699086]
[1737754355606,0.028556,257.16,257.11,0.02699086]
[1737754355806,3.8886,257.12,257.11,0.02699086]
[1737754363610,9.43880928,257.14,256.99,3.8905]
[1737754363814,1.2462,257.13,256.99,3.8905]
[1737754364112,1.2462,257.13,256.95,1.2351]
[1737754364410,9.43880928,257.18,257.01,9.43880928]
[1737754364612,9.43880928,257.22,257.05,9.43880928]
[1737754364807,9.43880928,257.22,257.06,1.2351]
[1737754365611,9.43880928,257.22,257.06,3.7451]
[1737754365808,0.02698534,257.17,257.11,0.02825746]
[1737754367711,3.91478534,257.17,257.11,0.02825746]
[1737754368411,3.8881,257.15,257.11,0.02825746]
[1737754368604,0.02698534,257.17,257.11,0.02825746]
[1737754369311,3.8886,257.12,257.11,0.02825746]
[1737754369505,0.02698534,257.17,257.11,0.02825746]
[1737754370210,3.8884,257.14,257.11,0.02825746]
[1737754371003,3.8881,257.16,257.11,0.02825746]
[1737754373407,0.02698534,257.17,257.11,3.91685746]
[1737754373611,0.02698534,257.17,257.11,0.02825746]
[1737754376715,0.02698534,257.17,257.14,3.8883]
[1737754377218,0.02698534,257.17,257.12,3.8885]
[1737754377614,0.02698534,257.17,257.11,0.02825746]